bitfinex/quotes_BTCUSD_20220731
["timestamp","ask_amount","ask_price","bid_price","bid_amount"]
[1659248411898,0.304155,23745.0,23744.0,0.05248398]
[1659248412564,0.304155,23745.0,23744.0,0.08448398]
[1659248413524,0.58626394,23746.0,23744.0,0.38863898]
[1659248413738,0.58626394,23746.0,23744.0,0.05248398]
[1659248413992,0.304155,23745.0,23744.0,0.05248398]
[1659248414217,0.62279457,23746.0,23743.0,0.40725733]
[1659248414447,0.304155,23745.0,23744.0,0.05248398]
[1659248414910,0.62279457,23746.0,23744.0,0.05248398]
[1659248415122,0.304155,23745.0,23744.0,0.05248398]
[1659248415349,0.62279457,23746.0,23744.0,0.05248398]
[1659248415578,0.304155,23745.0,23744.0,0.05248398]
[1659248415797,0.62279457,23746.0,23744.0,0.05238815]
[1659248416044,0.304155,23745.0,23744.0,0.05238815]
[1659248416256,0.62279457,23746.0,23744.0,0.05238815]
[1659248416467,0.304155,23745.0,23744.0,0.05238815]
[1659248416690,0.62279457,23746.0,23744.0,0.05238815]
[1659248416909,0.304155,23745.0,23744.0,0.05238815]
[1659248417318,0.58626394,23746.0,23744.0,0.05238815]
[1659248417559,0.304155,23745.0,23744.0,0.05238815]
[1659248417768,0.58626394,23746.0,23744.0,0.05238815]
[1659248417983,0.304155,23745.0,23744.0,0.05238815]
[1659248418207,0.58626394,23746.0,23744.0,0.35238815]
[1659248418444,0.304155,23745.0,23744.0,0.35238815]
[1659248418663,0.58626394,23746.0,23744.0,0.35238815]
[1659248418915,0.304155,23745.0,23744.0,0.35238815]
[1659248419130,0.58626394,23746.0,23744.0,0.35238815]
[1659248419358,0.304155,23745.0,23744.0,0.35593628]
[1659248419575,0.03467316,23745.0,23743.0,0.45725733]
[1659248420023,0.304155,23744.0,23743.0,0.45725733]
[1659248420224,0.03467316,23745.0,23743.0,0.4608056]
[1659248420422,0.304155,23744.0,23743.0,0.4928056]
[1659248420642,0.58626394,23746.0,23743.0,0.78925733]
[1659248420850,0.304155,23745.0,23743.0,0.48925733]
[1659248421100,0.58626394,23746.0,23743.0,0.48925733]
[1659248421304,0.304155,23745.0,23743.0,0.48925733]
[1659248421505,0.58626394,23746.0,23743.0,0.48925733]
[1659248421713,0.304155,23745.0,23743.0,0.45725733]
[1659248421919,0.58626394,23746.0,23743.0,0.45725733]
[1659248422128,0.304155,23745.0,23743.0,0.45725733]
[1659248422363,0.58626394,23746.0,23743.0,0.45725733]
[1659248422574,0.304155,23745.0,23743.0,0.45725733]
[1659248422780,0.58626394,23746.0,23743.0,0.45725733]
[1659248423006,0.05427223,23744.0,23743.0,0.05]
[1659248423213,0.05427223,23744.0,23743.0,0.082]
[1659248423623,0.35842723,23744.0,23743.0,0.082]
[1659248424483,0.35842723,23744.0,23743.0,0.144]
[1659248424917,0.35842723,23744.0,23743.0,0.19638815]
[1659248425120,0.35842723,23744.0,23743.0,0.10238815]
[1659248425570,0.304155,23744.0,23743.0,0.10238815]
[1659248431588,0.33882816,23744.0,23743.0,0.10238815]
[1659248432244,0.304155,23744.0,23743.0,0.10238815]
[1659248432463,0.304155,23744.0,23743.0,0.10338815]
[1659248432659,0.33882816,23744.0,23743.0,0.10338815]
[1659248433547,0.304155,23744.0,23743.0,0.10338815]
[1659248433804,0.304155,23744.0,23743.0,0.10238815]
[1659248434275,0.33882816,23744.0,23743.0,0.10238815]
[1659248434480,0.33882816,23744.0,23743.0,0.10338815]
[1659248434918,0.304155,23744.0,23743.0,0.10338815]
[1659248435169,0.43443209,23745.0,23743.0,0.10338815]
[1659248435387,0.33882816,23744.0,23743.0,0.10338815]
[1659248435601,0.33882816,23744.0,23743.0,0.051]
[1659248435812,0.304155,23744.0,23743.0,0.10238815]
[1659248436035,0.43443209,23745.0,23743.0,0.50964548]
[1659248436483,0.304155,23744.0,23743.0,0.51064548]
[1659248436708,0.43443209,23745.0,23743.0,0.51064548]
[1659248436709,0.46910525,23745.0,23743.0,0.51064548]
[1659248436929,0.304155,23744.0,23743.0,0.51064548]
[1659248437142,0.43443209,23745.0,23743.0,0.51064548]
[1659248437374,0.304155,23744.0,23743.0,0.51064548]
[1659248437625,0.43443209,23745.0,23743.0,0.51064548]
[1659248437820,0.43443209,23745.0,23744.0,0.00019702]
[1659248438073,0.304155,23744.0,23743.0,0.50964548]
[1659248438299,0.43443209,23745.0,23743.0,0.50964548]
[1659248439346,0.47096272,23745.0,23743.0,0.50964548]
[1659248439561,0.304155,23744.0,23743.0,0.50964548]
[1659248439887,0.47096272,23745.0,23743.0,0.50964548]
[1659248439888,0.43443209,23745.0,23743.0,0.50964548]
[1659248440304,0.304155,23744.0,23743.0,0.51064548]
[1659248440530,0.43443209,23745.0,23743.0,0.51064548]
[1659248440751,0.43443209,23745.0,23743.0,0.051]
[1659248440997,0.35842723,23744.0,23743.0,0.051]
[1659248441220,1.0568671,23744.0,23743.0,0.051]
[1659248441945,0.8027121,23744.0,23743.0,0.05]
[1659248442144,0.54809433,23744.0,23743.0,0.05]
[1659248442379,0.85224933,23744.0,23743.0,0.05]
[1659248443004,0.80224933,23744.0,23743.0,0.05]
[1659248446373,0.80224933,23744.0,23743.0,0.10238815]
[1659248454065,0.83877996,23744.0,23743.0,0.10238815]
[1659248456054,0.80224933,23744.0,23743.0,0.10238815]
[1659248456279,0.83692249,23744.0,23743.0,0.10238815]
[1659248459276,0.80224933,23744.0,23743.0,0.10238815]
[1659248467361,0.7479771,23744.0,23743.0,0.10238815]
[1659248482086,0.74711042,23744.0,23743.0,0.10238815]
[1659248492468,1.05,23743.0,23732.0,0.210573]
[1659248492679,0.45531667,23739.0,23733.0,0.40725733]
[1659248492964,0.304155,23738.0,23735.0,0.00013835]
[1659248493184,0.80427223,23736.0,23735.0,0.00013835]
[1659248493403,0.35842723,23736.0,23735.0,0.00013835]
[1659248493645,0.05427223,23736.0,23735.0,0.00013835]
[1659248493867,0.05427223,23736.0,23732.0,0.40725733]
[1659248494102,0.304155,23737.0,23732.0,0.40725733]
[1659248494343,0.42741204,23739.0,23733.0,0.03163]
[1659248494594,0.05,23736.0,23733.0,0.40725733]
[1659248495761,0.44076543,23736.0,23733.0,0.40725733]
[1659248495991,0.304155,23735.0,23733.0,0.40725733]
[1659248496213,0.44076543,23736.0,23733.0,0.40725733]
[1659248496441,0.03653063,23735.0,23733.0,0.40725733]
[1659248496684,0.47776543,23736.0,23733.0,0.40732563]
[1659248497376,0.47776543,23736.0,23733.0,6.83e-05]
[1659248497823,0.44076543,23736.0,23733.0,6.83e-05]
[1659248498358,0.3,23740.0,23733.0,6.83e-05]
[1659248498577,0.037,23736.0,23733.0,6.83e-05]
[1659248499261,0.03653063,23735.0,23731.0,0.756274]
[1659248499475,0.03653063,23735.0,23732.0,0.40732563]
[1659248499961,0.4374492,23737.0,23732.0,0.40732563]
[1659248500415,0.039,23735.0,23732.0,0.40732563]
[1659248501300,0.039,23735.0,23733.0,0.3]
[1659248501750,0.4374492,23737.0,23733.0,0.3]
[1659248502273,0.4374492,23737.0,23732.0,0.40732563]
[1659248503384,0.304155,23736.0,23732.0,0.40732563]
[1659248503647,0.4374492,23737.0,23732.0,0.40732563]
[1659248503870,0.4754492,23737.0,23732.0,0.40732563]
[1659248504323,0.4754492,23737.0,23732.0,0.40725733]
[1659248505035,0.304155,23736.0,23732.0,0.40725733]
[1659248505273,0.03467316,23735.0,23732.0,0.40725733]
[1659248505488,0.03653063,23735.0,23732.0,0.40725733]
[1659248506224,0.4924492,23737.0,23732.0,0.40725733]
[1659248506913,0.038,23735.0,23732.0,0.40725733]
[1659248507585,0.4374492,23737.0,23732.0,0.40725733]
[1659248507822,0.304155,23736.0,23731.0,0.5457]
[1659248508021,0.4374492,23737.0,23731.0,0.5457]
[1659248508236,0.304155,23736.0,23731.0,0.5457]
[1659248508476,0.5154492,23737.0,23731.0,0.5457]
[1659248508686,0.604155,23736.0,23731.0,0.5457]
[1659248508906,0.3,23736.0,23731.0,0.5457]
[1659248509116,0.5654492,23737.0,23731.0,0.5457]
[1659248509332,0.8654492,23737.0,23731.0,0.5457]
[1659248509559,0.8654492,23737.0,23731.0,0.95295733]
[1659248509871,0.7874492,23737.0,23731.0,0.95295733]
[1659248510095,0.7874492,23737.0,23732.0,0.40725733]
[1659248510541,0.304155,23736.0,23731.0,0.95295733]
[1659248510776,0.8654492,23737.0,23731.0,0.95295733]
[1659248510989,0.304155,23736.0,23731.0,0.95295733]
[1659248511230,0.8654492,23737.0,23731.0,0.95295733]
[1659248511685,0.7874492,23737.0,23732.0,0.40725733]
[1659248511932,0.4874492,23737.0,23732.0,0.40725733]
[1659248512595,0.4374492,23737.0,23732.0,0.40725733]
[1659248512794,0.304155,23736.0,23732.0,0.40725733]
[1659248513030,0.4374492,23737.0,23732.0,0.40725733]
[1659248513249,0.03653063,23735.0,23732.0,0.40725733]
[1659248513472,0.4374492,23737.0,23732.0,0.40725733]
[1659248514218,0.304155,23736.0,23732.0,0.40725733]
[1659248514439,0.4374492,23737.0,23732.0,0.40725733]
[1659248514906,0.45734131,23742.0,23733.0,0.304155]
[1659248515128,0.604155,23741.0,23734.0,0.70725733]
[1659248515377,0.604155,23741.0,23733.0,0.242193]
[1659248515378,0.078,23737.0,23735.0,0.40725733]
[1659248515604,0.304155,23736.0,23735.0,0.40725733]
[1659248515846,0.078,23737.0,23735.0,0.40725733]
[1659248516095,0.07792579,23737.0,23736.0,0.05]
[1659248516777,0.42770197,23740.0,23736.0,0.05]
[1659248517004,0.34068563,23739.0,23736.0,0.05]
[1659248517217,0.03653063,23739.0,23735.0,0.40725733]
[1659248517517,0.304155,23738.0,23735.0,0.40725733]
[1659248517685,0.42770197,23740.0,23735.0,0.40725733]
[1659248517911,0.304155,23739.0,23735.0,0.40725733]
[1659248518121,0.42770197,23740.0,23735.0,0.40725733]
[1659248518350,0.304155,23739.0,23735.0,0.40725733]
[1659248518570,0.50670197,23740.0,23735.0,0.40725733]
[1659248518826,0.304155,23739.0,23735.0,0.40725733]
[1659248519060,0.50670197,23740.0,23735.0,0.40725733]
[1659248519299,0.304155,23739.0,23735.0,0.40725733]
[1659248519528,0.50670197,23740.0,23735.0,0.40725733]
[1659248519745,0.304155,23739.0,23735.0,0.40725733]
[1659248519966,0.03653063,23738.0,23735.0,0.40725733]
[1659248520663,0.066,23739.0,23735.0,0.40725733]
[1659248520872,0.304155,23738.0,23735.0,0.40725733]
[1659248521082,0.066,23739.0,23735.0,0.40725733]
[1659248521360,0.304155,23738.0,23735.0,0.40725733]
[1659248521580,0.066,23739.0,23735.0,0.40725733]
[1659248521799,0.304155,23738.0,23735.0,0.40725733]
[1659248522015,0.42770197,23740.0,23735.0,0.40725733]
[1659248522238,0.304155,23739.0,23735.0,0.40725733]
[1659248522456,0.079,23738.0,23735.0,0.40725733]
[1659248522891,0.304155,23737.0,23735.0,0.40725733]
[1659248523108,0.079,23738.0,23735.0,0.40725733]
[1659248523328,0.07226483,23738.0,23735.0,0.40725733]
[1659248523784,0.42770197,23740.0,23735.0,0.40725733]
[1659248524000,0.304155,23739.0,23735.0,0.40725733]
[1659248524227,0.42770197,23740.0,23735.0,0.40725733]
[1659248524444,0.304155,23739.0,23735.0,0.40725733]
[1659248524678,0.47270197,23740.0,23736.0,0.00381323]
[1659248524899,0.304155,23739.0,23736.0,0.00381323]
[1659248525327,0.47270197,23740.0,23736.0,0.00381323]
[1659248525328,0.03653063,23738.0,23733.0,0.210563]
[1659248525561,1.05964588,23739.0,23733.0,0.40725733]
[1659248525805,0.3,23739.0,23732.0,0.40725733]
[1659248526019,0.43847797,23737.0,23731.0,0.95295733]
[1659248526250,0.73847797,23737.0,23731.0,0.95295733]
[1659248527412,0.43847797,23737.0,23731.0,0.95295733]
[1659248528515,0.51747797,23737.0,23732.0,0.304155]
[1659248528739,0.51747797,23737.0,23731.0,0.95295733]
[1659248529687,0.43847797,23737.0,23731.0,0.95295733]
[1659248530134,0.9747,23740.0,23732.0,0.40725733]
[1659248530354,1.37662351,23740.0,23733.0,0.3]
[1659248530592,0.079,23737.0,23733.0,0.40725733]
[1659248531685,0.3,23739.0,23733.0,0.40725733]
[1659248532121,0.304155,23738.0,23733.0,0.40725733]
[1659248532340,0.73496278,23739.0,23733.0,0.40725733]
[1659248532557,0.81396278,23739.0,23733.0,0.40725733]
[1659248532852,0.304155,23738.0,23733.0,0.40725733]
[1659248533087,0.51396278,23739.0,23733.0,0.40725733]
[1659248533309,0.81396278,23739.0,23733.0,0.40725733]
[1659248533786,0.304155,23738.0,23733.0,0.40725733]
[1659248533996,0.43496278,23739.0,23733.0,0.40725733]
[1659248534207,0.304155,23738.0,23733.0,0.40725733]
[1659248534458,0.73496278,23739.0,23733.0,0.40725733]
[1659248534922,0.079,23738.0,23733.0,0.40725733]
[1659248535563,0.304155,23737.0,23733.0,0.40725733]
[1659248535781,0.079,23738.0,23733.0,0.40725733]
[1659248536002,0.304155,23737.0,23733.0,0.40725733]
[1659248536443,0.079,23738.0,23733.0,0.40725733]
[1659248536444,0.158,23738.0,23733.0,0.40725733]
[1659248536924,0.304155,23737.0,23733.0,0.40725733]
[1659248537154,0.73496278,23739.0,23733.0,0.40725733]
[1659248537373,0.304155,23738.0,23733.0,0.40725733]
[1659248537592,0.73496278,23739.0,23733.0,0.40725733]
[1659248537807,0.304155,23738.0,23733.0,0.40725733]
[1659248538045,0.73496278,23739.0,23733.0,0.40725733]
[1659248538553,0.343155,23738.0,23733.0,0.40725733]
[1659248538773,0.039,23738.0,23733.0,0.40725733]
[1659248538992,0.304155,23737.0,23733.0,0.40725733]
[1659248539214,0.039,23738.0,23733.0,0.40725733]
[1659248539438,0.304155,23737.0,23733.0,0.40725733]
[1659248540353,0.079,23737.0,23733.0,0.40725733]
[1659248540637,0.03653063,23736.0,23733.0,0.40725733]
[1659248541426,0.079,23737.0,23733.0,0.40725733]
[1659248541639,0.73496278,23739.0,23733.0,0.40725733]
[1659248541801,0.304155,23738.0,23733.0,0.40725733]
[1659248542445,0.73496278,23739.0,23733.0,0.40725733]
[1659248542671,0.304155,23738.0,23733.0,0.40725733]
[1659248542908,0.73496278,23739.0,23733.0,0.40725733]
[1659248543158,0.304155,23738.0,23733.0,0.40725733]
[1659248543360,0.73496278,23739.0,23733.0,0.40725733]
[1659248543577,0.304155,23738.0,23733.0,0.40725733]
[1659248543805,0.73496278,23739.0,23733.0,0.40725733]
[1659248544039,0.304155,23738.0,23733.0,0.40725733]
[1659248544259,0.079,23738.0,23733.0,0.40725733]
[1659248545407,0.304155,23737.0,23733.0,0.40725733]
[1659248545612,0.079,23738.0,23733.0,0.40725733]
[1659248545821,0.304155,23737.0,23733.0,0.40725733]
[1659248546031,0.73496278,23739.0,23733.0,0.40725733]
[1659248546661,0.304155,23738.0,23733.0,0.40725733]
[1659248546858,0.304155,23737.0,23733.0,0.40725733]
[1659248547079,0.73496278,23739.0,23733.0,0.40725733]
[1659248548445,0.73496278,23739.0,23734.0,0.3]
[1659248548669,0.304155,23738.0,23734.0,0.3]
[1659248548883,0.079,23737.0,23734.0,0.3]
[1659248549548,0.304155,23736.0,23734.0,0.3]
[1659248549762,0.079,23737.0,23734.0,0.3]
[1659248550236,0.73496278,23739.0,23734.0,0.3]
[1659248550443,0.73496278,23739.0,23733.0,0.40725733]
[1659248550659,0.304155,23738.0,23733.0,0.40725733]
[1659248550880,0.81396278,23739.0,23733.0,0.40725733]
[1659248551525,0.304155,23738.0,23733.0,0.40725733]
[1659248551747,0.81396278,23739.0,23733.0,0.40725733]
[1659248551973,0.304155,23738.0,23733.0,0.40725733]
[1659248552229,0.73496278,23739.0,23733.0,0.40725733]
[1659248552442,0.304155,23738.0,23733.0,0.40725733]
[1659248552651,0.73496278,23739.0,23733.0,0.40725733]
[1659248552868,0.304155,23738.0,23733.0,0.40725733]
[1659248553080,0.81396278,23739.0,23733.0,0.40725733]
[1659248553750,0.304155,23738.0,23733.0,0.40725733]
[1659248553952,0.51396278,23739.0,23733.0,0.40725733]
[1659248554173,0.73496278,23739.0,23733.0,0.40725733]
[1659248554381,0.304155,23738.0,23733.0,0.40725733]
[1659248554600,0.73496278,23739.0,23733.0,0.40725733]
[1659248554832,0.304155,23738.0,23733.0,0.40725733]
[1659248555061,0.81396278,23739.0,23733.0,0.40725733]
[1659248555273,0.304155,23738.0,23733.0,0.40725733]
[1659248555488,0.81396278,23739.0,23733.0,0.40725733]
[1659248555703,0.304155,23738.0,23733.0,0.40725733]
[1659248555912,0.81396278,23739.0,23733.0,0.40725733]
[1659248556179,0.304155,23738.0,23733.0,0.40725733]
[1659248556397,0.73496278,23739.0,23733.0,0.40725733]
[1659248556621,0.304155,23738.0,23733.0,0.40725733]
[1659248556833,0.72249339,23737.0,23733.0,0.40725733]
[1659248557086,0.34072963,23736.0,23733.0,0.40725733]
[1659248557300,0.079,23738.0,23733.0,0.40725733]
[1659248557514,0.304199,23737.0,23733.0,0.40725733]
[1659248557760,0.079,23738.0,23733.0,0.40725733]
[1659248557980,0.304199,23737.0,23733.0,0.40725733]
[1659248558207,0.00185747,23736.0,23733.0,0.40725733]
[1659248558424,0.73835379,23739.0,23733.0,0.40725733]
[1659248558639,0.304199,23738.0,23733.0,0.40725733]
[1659248558855,0.079,23736.0,23733.0,0.40725733]
[1659248559307,0.079,23736.0,23734.0,0.604199]
[1659248559546,0.079,23736.0,23733.0,0.40725733]
[1659248560259,0.73835379,23739.0,23733.0,0.40725733]
[1659248560882,0.78935379,23739.0,23733.0,0.40725733]
[1659248561103,0.78935379,23739.0,23733.0,0.40714097]
[1659248561792,0.304199,23738.0,23733.0,0.40714097]
[1659248561994,0.48935379,23739.0,23733.0,0.40714097]
[1659248562211,0.78935379,23739.0,23733.0,0.39084097]
[1659248562853,0.81835379,23739.0,23733.0,0.39084097]
[1659248563553,0.304199,23738.0,23733.0,0.39084097]
[1659248563951,0.51835379,23739.0,23733.0,0.39084097]
[1659248563955,0.81835379,23739.0,23733.0,0.39084097]
[1659248564176,0.304199,23738.0,23733.0,0.39084097]
[1659248564402,0.73835379,23739.0,23733.0,0.39084097]
[1659248564625,0.304199,23738.0,23733.0,0.39084097]
[1659248564846,0.44509531,23737.0,23733.0,0.39084097]
[1659248565308,0.304199,23736.0,23733.0,0.39084097]
[1659248565583,0.44509531,23737.0,23733.0,0.39084097]
[1659248566920,0.50009531,23737.0,23733.0,0.39084097]
[1659248567576,0.304199,23736.0,23733.0,0.39084097]
[1659248567805,0.50009531,23737.0,23733.0,0.39084097]
[1659248568902,0.134,23737.0,23733.0,0.39084097]
[1659248569128,0.079,23737.0,23733.0,0.39084097]
[1659248569365,0.079,23737.0,23734.0,0.3]
[1659248570727,0.3,23739.0,23734.0,0.3]
[1659248570932,0.055,23737.0,23734.0,0.3]
[1659248572298,0.3,23739.0,23734.0,0.3]
[1659248572527,0.84073006,23740.0,23734.0,0.3]
[1659248572758,0.304199,23739.0,23734.0,0.3]
[1659248572975,0.351,23739.0,23734.0,0.3]
[1659248573443,0.351,23739.0,23733.0,0.39084097]
[1659248574358,0.3,23739.0,23734.0,0.3]
[1659248574576,0.304199,23738.0,23734.0,0.3]
[1659248574802,0.03653063,23737.0,23733.0,0.39084097]
[1659248575026,0.38,23739.0,23734.0,0.3]
[1659248575246,0.304199,23738.0,23734.0,0.3]
[1659248575531,0.08,23739.0,23734.0,0.75725733]
[1659248576004,0.08,23739.0,23734.0,0.80725733]
[1659248576227,0.41539739,23740.0,23734.0,0.80725733]
[1659248576454,0.41539739,23740.0,23734.0,0.70725733]
[1659248576902,0.47839739,23740.0,23734.0,0.70725733]
[1659248577156,0.063,23740.0,23734.0,0.80725733]
[1659248577374,0.063,23740.0,23734.0,0.99769575]
[1659248577815,0.063,23740.0,23734.0,1.04769575]
[1659248578038,0.063,23740.0,23734.0,0.80725733]
[1659248578694,0.75784988,23742.0,23734.0,0.80725733]
[1659248578925,0.063,23740.0,23734.0,0.70725733]
[1659248579135,0.363,23740.0,23734.0,0.70725733]
[1659248579654,0.363,23740.0,23734.0,0.80725733]
[1659248579871,0.363,23740.0,23734.0,0.70725733]
[1659248580096,0.77025733,23740.0,23731.0,1.1348]
[1659248580315,0.70725733,23740.0,23732.0,0.40725733]
[1659248580968,0.78625733,23740.0,23732.0,0.40725733]
[1659248581642,0.43429713,23739.0,23733.0,0.3]
[1659248581857,0.43429713,23739.0,23733.0,0.70725733]
[1659248582523,0.3,23738.0,23733.0,0.40725733]
[1659248582744,0.304199,23737.0,23733.0,0.40725733]
[1659248582980,0.03653063,23736.0,23733.0,0.40725733]
[1659248583269,0.304199,23735.0,23732.0,0.40725733]
[1659248583485,0.05427223,23733.0,23728.0,0.58651815]
[1659248583725,0.40725733,23734.0,23728.0,0.58651815]
[1659248583726,0.05427223,23729.0,23728.0,0.58651815]
[1659248583941,0.09080286,23729.0,23728.0,0.00031815]
[1659248584402,0.39500186,23729.0,23728.0,0.00031815]
[1659248584620,0.05427223,23729.0,23728.0,0.00031815]
[1659248584872,0.05427223,23729.0,23728.0,0.07931815]
[1659248585105,0.09080286,23729.0,23728.0,0.07931815]
[1659248586240,0.09080286,23729.0,23728.0,0.00031815]
[1659248586885,0.05427223,23729.0,23728.0,0.07831815]
[1659248588268,0.05427223,23729.0,23728.0,0.00031815]
[1659248588977,0.35847123,23729.0,23728.0,0.00031815]
[1659248589446,0.05427223,23729.0,23728.0,0.00031815]
[1659248590561,0.39314439,23729.0,23728.0,0.00031815]
[1659248590799,0.35847123,23729.0,23728.0,0.00031815]
[1659248591080,0.05427223,23729.0,23728.0,0.00031815]
[1659248591310,0.42224823,23731.0,23725.0,0.3]
[1659248591548,0.42224823,23731.0,23725.0,0.70725733]
[1659248593847,0.3,23730.0,23725.0,0.70725733]
[1659248594054,0.42224823,23731.0,23725.0,0.70725733]
[1659248594798,0.3,23730.0,23725.0,0.70725733]
[1659248595074,0.42224823,23731.0,23725.0,0.70725733]
[1659248597725,0.40725733,23734.0,23728.0,0.078]
[1659248597952,0.70725733,23734.0,23728.0,0.36850813]
[1659248598171,0.05,23731.0,23729.0,0.3]
[1659248599088,0.70725733,23734.0,23729.0,0.3]
[1659248599313,0.304199,23733.0,23727.0,0.3]
[1659248599531,0.70725733,23734.0,23727.0,0.70725733]
[1659248599952,0.072,23733.0,23727.0,0.70725733]
[1659248600846,0.70725733,23734.0,23727.0,0.70725733]
[1659248601063,0.304199,23733.0,23727.0,0.70725733]
[1659248601272,0.70725733,23734.0,23727.0,0.70725733]
[1659248601744,0.304199,23733.0,23727.0,0.70725733]
[1659248601977,0.78725733,23734.0,23727.0,0.70725733]
[1659248602404,0.304199,23733.0,23727.0,0.75725733]
[1659248602617,0.78725733,23734.0,23727.0,0.70725733]
[1659248602883,0.304199,23733.0,23727.0,0.70725733]
[1659248603112,0.70725733,23734.0,23727.0,0.70725733]
[1659248603988,0.76225733,23734.0,23727.0,0.75725733]
[1659248604194,0.76225733,23734.0,23727.0,0.70725733]
[1659248604420,0.76225733,23734.0,23727.0,0.75725733]
[1659248604633,0.304199,23733.0,23727.0,0.80725733]
[1659248604844,0.76225733,23734.0,23727.0,0.75725733]
[1659248605074,0.304199,23733.0,23727.0,0.70725733]
[1659248605306,0.70725733,23734.0,23727.0,0.75725733]
[1659248605503,0.70725733,23734.0,23727.0,0.70725733]
[1659248605931,0.76225733,23734.0,23727.0,0.70725733]
[1659248606152,0.304199,23733.0,23727.0,0.70725733]
[1659248606361,0.76225733,23734.0,23727.0,0.70725733]
[1659248606584,0.304199,23733.0,23727.0,0.75725733]
[1659248606696,0.76225733,23734.0,23727.0,0.75725733]
[1659248607154,0.70725733,23734.0,23727.0,0.80725733]
[1659248607385,0.304199,23733.0,23727.0,0.80725733]
[1659248607607,0.70725733,23734.0,23727.0,0.70725733]
[1659248607814,0.76225733,23734.0,23727.0,0.70725733]
[1659248608302,0.304199,23733.0,23732.0,0.05]
[1659248608532,0.055,23734.0,23732.0,1.84308633]
[1659248608758,0.42442495,23743.0,23734.0,0.3]
[1659248608985,0.00019236,23744.0,23733.0,1.39308633]
[1659248608986,0.00019236,23744.0,23736.0,0.05]
[1659248609283,0.00019236,23744.0,23737.0,0.70725733]
[1659248609284,0.44959743,23744.0,23737.0,0.70725733]
[1659248609498,0.44959743,23744.0,23738.0,0.40725733]
[1659248609930,0.74130979,23743.0,23738.0,0.40725733]
[1659248610146,0.43711079,23743.0,23738.0,0.40725733]
[1659248610350,0.43711079,23743.0,23737.0,0.40725733]
[1659248610601,0.84436812,23743.0,23736.0,0.75725733]
[1659248611040,0.79436812,23743.0,23736.0,0.70725733]
[1659248611696,0.79436812,23743.0,23736.0,0.40725733]
[1659248611921,0.86236812,23743.0,23736.0,0.41225733]
[1659248613232,0.79436812,23743.0,23737.0,0.3]
[1659248613896,0.86236812,23743.0,23737.0,0.305]
[1659248615197,0.79436812,23743.0,23737.0,0.3]
[1659248616336,0.86236812,23743.0,23737.0,0.305]
[1659248617271,0.45511079,23743.0,23738.0,0.3]
[1659248617477,0.38711079,23743.0,23738.0,0.70725733]
[1659248617699,0.5544,23745.0,23738.0,0.75725733]
[1659248617917,0.5544,23745.0,23738.0,0.70725733]
[1659248617918,0.40725733,23745.0,23738.0,0.70725733]
[1659248618140,0.068,23743.0,23738.0,0.76225733]
[1659248618996,0.068,23743.0,23738.0,0.71225733]
[1659248619423,0.068,23743.0,23738.0,0.70725733]
[1659248619701,0.40725733,23745.0,23738.0,0.70725733]
[1659248619926,0.07,23743.0,23738.0,0.71325733]
[1659248620376,0.07,23743.0,23738.0,0.76325733]
[1659248620810,0.07,23743.0,23738.0,0.84488733]
[1659248621022,0.07,23743.0,23738.0,0.74488733]
[1659248621247,0.40725733,23745.0,23738.0,0.70725733]
[1659248621459,0.82926009,23745.0,23738.0,0.70725733]
[1659248621675,0.82926009,23745.0,23738.0,0.75725733]
[1659248621900,0.90826009,23745.0,23738.0,0.80725733]
[1659248622174,6.184e-05,23744.0,23739.0,0.3]
[1659248622434,6.184e-05,23744.0,23740.0,0.98696781]
[1659248622669,6.184e-05,23744.0,23743.0,0.05]
[1659248623351,0.58626394,23746.0,23741.0,0.3]
[1659248623565,0.46392559,23745.0,23740.0,0.40725733]
[1659248623782,0.304199,23744.0,23743.0,0.044]
[1659248624231,6.184e-05,23745.0,23743.0,0.044]
[1659248624477,0.304199,23744.0,23743.0,0.044]
[1659248624669,0.03659247,23745.0,23743.0,0.044]
[1659248624896,0.304199,23744.0,23743.0,0.044]
[1659248625108,0.304199,23744.0,23741.0,0.3]
[1659248625331,0.03653063,23745.0,23741.0,0.3]
[1659248625566,0.58626394,23746.0,23741.0,0.3]
[1659248625809,0.58626394,23746.0,23741.0,0.344]
[1659248626265,0.304199,23745.0,23741.0,0.344]
[1659248626492,0.58626394,23746.0,23741.0,0.344]
[1659248627154,0.58626394,23746.0,23740.0,0.40725733]
[1659248627590,1.01755686,23746.0,23740.0,0.40725733]
[1659248627814,1.01755686,23746.0,23740.0,0.44625733]
[1659248628241,1.01755686,23746.0,23741.0,0.3]
[1659248629618,1.01755686,23746.0,23740.0,0.44625733]
[1659248629818,1.01755686,23746.0,23740.0,0.40725733]
[1659248630169,0.304199,23745.0,23741.0,0.039]
[1659248630347,1.01755686,23746.0,23741.0,0.339]
[1659248631223,1.01755686,23746.0,23741.0,0.3]
[1659248631437,0.304199,23745.0,23741.0,0.3]
[1659248631652,1.01755686,23746.0,23741.0,0.3]
[1659248631859,1.01755686,23746.0,23741.0,0.339]
[1659248632319,0.304199,23745.0,23741.0,0.339]
[1659248632528,1.01755686,23746.0,23741.0,0.339]
[1659248633232,1.01755686,23746.0,23741.0,0.3]
[1659248633893,1.01755686,23746.0,23741.0,0.339]
[1659248634988,0.304199,23745.0,23741.0,0.339]
[1659248635157,0.304199,23745.0,23741.0,0.3]
[1659248635356,1.01755686,23746.0,23741.0,0.3]
[1659248635679,1.01755686,23746.0,23740.0,0.40725733]
[1659248635888,1.01755686,23746.0,23741.0,0.053]
[1659248636312,1.01755686,23746.0,23741.0,0.353]
[1659248636555,0.304199,23745.0,23741.0,0.353]
[1659248636759,1.01755686,23746.0,23741.0,0.353]
[1659248637175,1.01755686,23746.0,23741.0,0.3]
[1659248637890,1.01755686,23746.0,23741.0,0.339]
[1659248639186,0.71145633,23745.0,23741.0,0.039]
[1659248639415,0.44378796,23744.0,23741.0,0.039]
[1659248639861,0.44378796,23744.0,23741.0,0.053]
[1659248640074,0.304199,23743.0,23741.0,0.053]
[1659248640505,0.44378796,23744.0,23741.0,0.053]
[1659248640706,0.304199,23743.0,23741.0,0.053]
[1659248641200,0.304199,23742.0,23738.0,0.3]
[1659248641415,0.03653063,23741.0,23737.0,0.5693]
[1659248641623,0.03653063,23741.0,23738.0,0.304199]
[1659248641857,0.85902918,23744.0,23738.0,0.073]
[1659248642509,0.85902918,23744.0,23738.0,0.373]
[1659248643337,0.85902918,23744.0,23738.0,0.3]